Cogmind - Beta 13 @@@ ROGUE MODE // 2024.05.21 @ 18:26:14 Player: paplal Result: Destroyed by B-36 Bruiser with Hammer Performance ------------- Evolutions (2) 1000 Regions Visited (4) 800 Robots Destroyed (78) 390 Value Destroyed (1683) 1683 Prototype IDs (1) 20 Alien Tech Used (0) 0 Bonus (28) 28 TOTAL SCORE: 3921 Bonus ------- High Alert Combat Kills 28 Cogmind --------- Core Integrity 0/550 Matter 49/300 Energy 100/100 System Corruption 6% Temperature Cool (0) Movement Core (1350) Ox26 Location -8/Materials Parts ------- > --- POWER (2) -------- (None) > --- PROPULSION (4) --- (None) > --- UTILITY (2) ------ Huge Storage Unit > --- WEAPON (3) ------- (None) > --- INVENTORY (25) --- Light Ion Engine Light Deuterium Engine Light Nuclear Core Light Nuclear Core Hacking Suite Rocket Launcher Peak State ------------ > --- POWER ------------ Light Ion Engine Light Deuterium Engine > --- PROPULSION ------- Light Treads Light Treads Light Treads Light Treads > --- UTILITY ---------- Huge Storage Unit Recalibrator > --- WEAPON ----------- Heavy Assault Rifle Rocket Launcher Plasma Cutter > --- INVENTORY -------- Ion Engine Light Ion Engine Light Ion Engine Light Ion Engine Light Ion Engine Light Deuterium Engine Light Deuterium Engine Light Treads Light Treads Light Treads Light Treads Light Treads Improved Terrain Scanner Hacking Suite Heavy EM Pulse Gun Improved EM Shotgun EM Pulse Cannon EM Pulse Cannon Improved Light Cannon Rocket Launcher Mini Grenade Launcher Mining Claw [Rating: 23] Favorites ----------- Power Light Ion Engine Engine Light Ion Engine Power Core Light Nuclear Core Propulsion Aluminum Leg Treads Light Treads Leg Aluminum Leg Utility Huge Storage Unit Device Recalibrator Storage Huge Storage Unit Processor Visual Processing Unit Weapon Medium Laser Energy Gun Medium Laser Energy Cannon EM Pulse Cannon Ballistic Gun Light Assault Rifle Ballistic Cannon Improved Light Cannon Launcher Grenade Launcher Special Weapon Plasma Cutter Slashing Weapon Mining Claw Build | -11 -10 -9 -9 -8 ------- Run | Yrd Mat Mat Min Mat Slots Evolved 4 | . . 2 . 2 Power 1 | . . 1 . . Propulsion 2 | . . 1 . 1 Utility . | . . . . . Weapon 1 | . . . . 1 Parts Attached 67 | 3 7 25 1 31 Power 12 | . 2 4 1 5 Engine 10 | . 2 3 1 4 Core 2 | . . 1 . 1 Reactor . | . . . . . Propulsion 18 | 2 . 8 . 8 Treads 12 | . . 4 . 8 Leg 6 | 2 . 4 . . Wheel . | . . . . . Hover . | . . . . . Flight . | . . . . . Utility 8 | 1 2 3 . 2 Device 4 | . 1 2 . 1 Storage 3 | 1 1 . . 1 Processor 1 | . . 1 . . Hackware . | . . . . . Protection . | . . . . . Artifact . | . . . . . Weapon 29 | . 3 10 . 16 Energy Gun 8 | . 1 3 . 4 Energy Cannon 2 | . . . . 2 Ballistic Gun 4 | . 1 2 . 1 Ballistic Cannon 1 | . . . . 1 Launcher 12 | . 1 5 . 6 Special Weapon 1 | . . . . 1 Impact Weapon . | . . . . . Slashing Weapon 1 | . . . . 1 Piercing Weapon . | . . . . . Special Melee Weapon . | . . . . . Unidentified Prototypes 1 | . . . . 1 Parts Lost 32 | . 1 9 . 22 Power 9 | . . 3 . 6 Propulsion 10 | . 1 2 . 7 Utility 1 | . . . . 1 Weapon 12 | . . 4 . 8 Highest Loss Streak 8 | . 1 3 . 8 To Critical Strikes 1 | . . . . 1 Average Slot Usage (%) 82 | . 79 88 86 72 Engine 13 | . 12 12 17 13 Treads 11 | . . 9 33 24 Leg 16 | . 22 23 . . Device 5 | . 6 3 11 5 Storage 11 | . 14 11 11 8 Processor 2 | . . 6 . . Energy Gun 7 | . 9 8 6 1 Ballistic Gun 7 | . 11 6 6 3 Launcher 3 | . 1 5 . 5 Naked Turns 10 | . . . . 10 Heaviest Build 100 | 5 87 97 94 100 Greatest Support 80 | 20 20 60 60 80 Greatest Overweight (x) 30 | . 8 3 1 30 Average Overweight (x) 1 | . 2 2 1 1 Largest Inventory Capacity 25 | 8 25 25 25 25 Average Capacity 23 | 6 20 25 25 24 Most Carried 25 | 7 15 25 25 24 Average Carried 14 | 5 10 16 24 14 Final Capacity 25 | 8 25 25 25 25 Final Carried 25 | 7 15 25 25 6 Class Distribution -------------------- 81% | Mutant 16% | Scavenger-Mutant Dominant Class ---------------- Mutant | -10/Materials Mutant | -9/Materials Mutant | -9/Mines Mutant | -8/Materials Resources | -11 -10 -9 -9 -8 ----------- Run | Yrd Mat Mat Min Mat Matter Collected 1348 | 230 72 681 76 289 Remotely 72 | . 72 . . . Salvage Created 2005 | . 200 859 89 857 Parts 141 | . 19 62 7 53 Haulers Intercepted . | . . . . . Recyclers Shooed . | . . . . . Parts Field Recycled . | . . . . . Retrieved Matter . | . . . . . Parts Self-Destructed . | . . . . . Prevented . | . . . . . Kills | -11 -10 -9 -9 -8 ------- Run | Yrd Mat Mat Min Mat Combat Hostiles Destroyed 44 | . 7 19 2 16 Guns 23 | . 7 11 2 3 Cannons 5 | . . . . 5 AOE 16 | . . 8 . 8 Classes Destroyed 13 | . 3 8 . 2 Worker 10 | . . 6 . 4 Builder 10 | . . 2 . 8 Tunneler 2 | . . 2 . . Recycler 4 | . . 2 . 2 Mechanic 2 | . . 1 . 1 Operator 1 | . . 1 . . Watcher 5 | . 1 4 . . Swarmer 14 | . 4 6 . 4 Grunt 23 | . 3 9 1 10 Brawler 1 | . . 1 . . Duelist 1 | . . . . 1 Sentry 4 | . . 3 1 . Hunter 1 | . . . . 1 Best Kill Streak 8 | . 3 5 1 8 Combat Bots Only 5 | . 3 4 1 5 Max Kills in Single Turn 5 | . 1 5 1 3 Gunslinging 1 | . . 1 . . Exploded 2 | . . 2 . 2 Melee . | . . . . . Uniques/NPCs Destroyed . | . . . . . Combat | -11 -10 -9 -9 -8 -------- Run | Yrd Mat Mat Min Mat Hostile Shots Fired 374 | . 48 112 8 206 Missed 112 | . 13 34 3 62 Damage Taken 4147 | . 350 1156 69 2572 Core 775 | . 68 111 23 573 Absorbed by Shields . | . . . . . Core Remaining (%) 79 | 100 72 . 66 . Volleys Fired 179 | . 30 77 9 63 Largest 3 | . 2 2 2 3 Hottest 147 | . 70 80 73 147 Shots Fired 311 | . 59 136 18 98 Gun 226 | . 59 109 18 40 Cannon 39 | . . . . 39 Launcher 46 | . . 27 . 19 Special . | . . . . . Kinetic 141 | . 30 62 9 40 Thermal 74 | . 29 36 9 . Explosive 46 | . . 27 . 19 Electromagnetic 50 | . . 11 . 39 Robot Hit Streak 11 | . 6 11 6 8 Robot Miss Streak 7 | . 4 7 4 5 Penetration Max . | . . . . . Secondary Targets 4 | . 3 1 . . Max Gunslinging Chain 1 | . 1 1 . . Shots Hit Robots 189 | . 32 82 9 66 Core Hits 123 | . 14 55 3 51 Critical Kills . | . . . . . Critical Parts Destroyed . | . . . . . Critical Strikes 4 | . 1 2 1 . Burn 4 | . 1 2 1 . Melee Attacks 1 | . . . . 1 Impact . | . . . . . Slashing 1 | . . . . 1 Piercing . | . . . . . Sneak Attacks 1 | . . . . 1 Combat Hostiles . | . . . . . Follow-up Attacks . | . . . . . Damage Inflicted 5459 | . 344 2087 138 2890 Guns 1795 | . 332 904 138 421 Cannons 705 | . . . . 705 Explosions 2896 | . . 1178 . 1718 Melee 46 | . . . . 46 Ramming 17 | . 12 5 . . Kinetic 1163 | . 119 566 76 402 Thermal 844 | . 213 295 62 274 Explosive 2596 | . . 1152 . 1444 Electromagnetic 793 | . . 69 . 724 Impact . | . . . . . Slashing 46 | . . . . 46 Piercing . | . . . . . Highest Corruption 6 | . . 2 2 6 Average Corruption 1 | . . 1 2 4 Corruption Purged . | . . . . . Corruption Blocked . | . . . . . Effects 10 | . . 5 4 1 Message Errors 3 | . . 3 . . Matter Fused 1 | . . . 1 . Heat Flow Errors 3 | . . 1 1 1 Data Loss (minor) 1 | . . . 1 . Data Loss (major) 1 | . . . 1 . Misfires 1 | . . 1 . . Overload Shots . | . . . . . Overflow Damage 249 | . . 23 . 226 Projectiles 1 | . . . . 1 Explosions 232 | . . 23 . 209 Melee 16 | . . . . 16 Knockbacks 2 | . . . . 2 Impact . | . . . . . Kinetic 2 | . . . . 2 Secondary . | . . . . . Self-Inflicted Damage 767 | . . 301 . 466 Shots 26 | . . 10 . 16 Rammed . | . . . . . Targets Rammed 5 | . 3 2 . . Kicked 5 | . 3 2 . . Crushed . | . . . . . Highest Temperature 224 | . 180 172 166 224 Average Temperature 44 | . 57 26 44 59 Received Heat Transfer 1293 | . 102 285 24 882 Siege Activations . | . . . . . Robots Corrupted . | . . . . . Combat Hostiles . | . . . . . Parts Fried . | . . . . . Impact Corruptions . | . . . . . Robots Melted . | . . . . . Combat Hostiles . | . . . . . Parts Melted 2 | . 1 1 . . Heat Transferred 2198 | . 703 1036 259 200 Parts Sabotaged . | . . . . . Parts Stolen . | . . . . . Parts Stripped . | . . . . . Power Chain Reactions 2 | . . . . 2 Alert | -11 -10 -9 -9 -8 ------- Run | Yrd Mat Mat Min Mat Peak Influence 477 | . 138 477 237 292 Initial 172 | . . 5 172 14 Average 100 | . 16 148 194 104 Maximum Alert Level 2 | . . 2 1 1 Low Security (%) 80 | 100 100 73 36 82 Level 1 14 | . . 13 63 17 Level 2 5 | . . 12 . . Level 3 . | . . . . . Level 4 . | . . . . . Level 5 . | . . . . . High Security . | . . . . . Max Security . | . . . . . Squads Dispatched 7 | . 1 2 1 3 Investigation 2 | . 1 1 . . Extermination . | . . . . . Reinforcement 5 | . . 1 1 3 Assault . | . . . . . Garrison . | . . . . . Intercept . | . . . . . Searches Triggered . | . . . . . Construction Impeded 3 | . . . 1 2 Haulers Reinforced . | . . . . . Active Scanning Responses . | . . . . . Cargo Convoy Interrupts . | . . . . . Stealth | -11 -10 -9 -9 -8 --------- Run | Yrd Mat Mat Min Mat Distress Signals 7 | . 1 5 . 1 Communications Jammed . | . . . . . Distress Signals . | . . . . . Times Spotted 70 | . 16 28 2 24 Peak Tracking Total 6 | . 5 6 2 6 Tactical Retreats 3 | . 1 1 . 1 Traps | -11 -10 -9 -9 -8 ------- Run | Yrd Mat Mat Min Mat Traps Triggered 2 | . 2 . . . Indirectly . | . . . . . Trap Hack Attempts . | . . . . . Triggered . | . . . . . Disarmed . | . . . . . Reprogrammed . | . . . . . Reused . | . . . . . Traps Extracted . | . . . . . Installed . | . . . . . Triggered . | . . . . . Machines | -11 -10 -9 -9 -8 ---------- Run | Yrd Mat Mat Min Mat Machines Disabled 8 | . . 5 . 3 Max in Single Turn 2 | . . 1 . 2 Machines Repaired . | . . . . . Machines Dismantled . | . . . . . Machines Sabotaged . | . . . . . Overloaded Fab Kills . | . . . . . Hacking | -11 -10 -9 -9 -8 --------- Run | Yrd Mat Mat Min Mat Machines Accessed 11 | . 5 6 . . Terminals 6 | . 2 4 . . Fabricators . | . . . . . Repair Stations 2 | . 1 1 . . Recycling Units 3 | . 2 1 . . Scanalyzers . | . . . . . Garrison Access . | . . . . . Total Hacks 18 | . 8 10 . . Successful 11 | . 6 5 . . Failed 7 | . 2 5 . . Catastrophic 2 | . . 2 . . Database Lockouts . | . . . . . Manual . | . . . . . Terminals 10 | . 3 7 . . Fabricators . | . . . . . Repair Stations 2 | . 1 1 . . Recycling Units 6 | . 4 2 . . Scanalyzers . | . . . . . Garrison Access . | . . . . . Terminal Hacks 7 | . 3 4 . . Alert Level 1 | . 1 . . . Dispatch Records 1 | . 1 . . . Maintenance Status 2 | . 1 1 . . Transport Status 1 | . . 1 . . Investigation Status 1 | . . 1 . . Hauler Manifests 1 | . . 1 . . Fabricator Hacks . | . . . . . Repair Station Hacks . | . . . . . Recycling Unit Hacks 4 | . 3 1 . . Report Inventory 2 | . 2 . . . Retrieve Components 2 | . 1 1 . . Scanalyzer . | . . . . . Garrison Access Hacks . | . . . . . Unauthorized Hacks . | . . . . . Terminals . | . . . . . Fabricators . | . . . . . Repair Stations . | . . . . . Recycling Units . | . . . . . Scanalyzers . | . . . . . Garrison Access . | . . . . . Data Cores Recovered . | . . . . . Used . | . . . . . Hacking Detections 6 | . 2 4 . . Full Trace Events 1 | . . 1 . . Feedback Events 1 | . . 1 . . Corruption 1 | . . 1 . . Feedback Blocked . | . . . . . Robot Schematics Acquired . | . . . . . Robots Built . | . . . . . Authchips . | . . . . . Time . | . . . . . Total Robot Build Rating . | . . . . . Part Schematics Acquired . | . . . . . Parts Built . | . . . . . Authchips . | . . . . . Time . | . . . . . Total Part Build Rating . | . . . . . Parts Repaired . | . . . . . Time . | . . . . . Parts Recycled . | . . . . . Recycled Matter . | . . . . . Retrieved Matter . | . . . . . Retrieved Components 3 | . 1 2 . . Parts Scanalyzed . | . . . . . Part Schematics Acquired . | . . . . . Parts Damaged . | . . . . . Bothacking | -11 -10 -9 -9 -8 ------------ Run | Yrd Mat Mat Min Mat Used RIF Installer . | . . . . . Robots Hacked . | . . . . . Non-combat . | . . . . . Combat . | . . . . . Robot Hacks Applied . | . . . . . Relay Couplers Released . | . . . . . Fabnet Peak Effective % . | . . . . . Robots Rewired . | . . . . . Allies Hacked . | . . . . . Hacks Repelled . | . . . . . Allies | -11 -10 -9 -9 -8 -------- Run | Yrd Mat Mat Min Mat Total Allies . | . . . . . Largest Group . | . . . . . Highest-Rated Group . | . . . . . Highest-Rated Ally . | . . . . . Total Orders . | . . . . . Ally Attacks . | . . . . . Total Damage . | . . . . . Kills . | . . . . . Allies Corrupted . | . . . . . Allies Melted . | . . . . . Intel | -11 -10 -9 -9 -8 ------- Run | Yrd Mat Mat Min Mat Robot Analysis Total . | . . . . . Derelict Logs Recovered . | . . . . . Drone Launches . | . . . . . Drone Recoveries . | . . . . . Exploration | -11 -10 -9 -9 -8 ------------- Run | Yrd Mat Mat Min Mat Turns Passed 4786 | 59 1508 1875 429 915 Spaces Moved 1473 | 49 488 552 167 217 Core 23 | 15 . . . 8 Treads 547 | . . 171 167 209 Legs 903 | 34 488 381 . . Wheels . | . . . . . Hover . | . . . . . Flight . | . . . . . Fastest Speed 50 | 50 120 240 240 50 Average Speed 271 | 98 282 282 240 285 Slowest Speed 1550 | 120 680 330 240 1550 Overloaded Moves . | . . . . . Propulsion Burnouts . | . . . . . Robots Hopped . | . . . . . Cave-ins Triggered . | . . . . . Exploration Rate (%) 38 | 3 80 54 39 16 Regions Visited 4 Branch Regions 1 Pre-discovered Areas . | . . . . . Known Exits Taken . | . . . . . Unknown Exits Taken 4 | 1 1 1 1 . Scrap Searched 1 | . . . 1 . Spaces Dug . | . . . . . Terrain Destroyed 277 | . . 125 . 152 Melee . | . . . . . Projectile . | . . . . . AOE 277 | . . 125 . 152 Terrain Rammed . | . . . . . Walls Destroyed . | . . . . . Machines Disabled . | . . . . . Actions | -11 -10 -9 -9 -8 --------- Run | Yrd Mat Mat Min Mat Total 1966 | 58 562 741 181 424 Wait 152 | . 17 48 . 87 Move 1469 | 48 487 551 166 217 Hop . | . . . . . Pick Up 71 | 7 14 29 2 19 Fast Attach 8 | 3 2 . . 3 Attach 48 | . 4 20 1 23 Detach 4 | . 1 2 . 1 Swap 11 | . 1 5 . 5 Drop 17 | . 3 7 3 4 Fire 179 | . 30 77 9 63 Melee 1 | . . . . 1 Ram . | . . . . . Kick 5 | . 3 2 . . Crush . | . . . . . Escape Stasis . | . . . . . Rewire . | . . . . . Trap . | . . . . . Miscellaneous 1 | . . . . 1 Route ------- -11/Scrapyard -10/Materials (discovered 5 exits: *Mat x3 / [*Min x2]) -9/Materials (discovered 4 exits: *Mat x2 / [*Min x2]) -9/Mines -8/Materials History --------- Turn | Location | Event 14 | -11/Scrapyard | Discovered new exit (range 16) 60 | -11/Scrapyard | Entered Materials 289 | -10/Materials | Discovered new exit (range 3) 316 | -10/Materials | Build established: Mutant 365 | -10/Materials | Discovered new exit (range 16) 583 | -10/Materials | Discovered new exit (range 6) 779 | -10/Materials | Discovered new exit (range 15) 1295 | -10/Materials | Discovered new exit (range 16) 1568 | -10/Materials | Entered another Materials area 1568 | -9/Materials | Evolved 2 slots: Power x1, Propulsion x1 1862 | -9/Materials | Discovered new exit (range 12) 2049 | -9/Materials | Build established: Scavenger-Mutant 2142 | -9/Materials | Discovered new exit (range 10) 2369 | -9/Materials | Build established: Mutant 2728 | -9/Materials | Discovered new exit (range 18) 2793 | -9/Materials | Build established: Scavenger-Mutant 2919 | -9/Materials | Lost 3 parts (2n1w) 3154 | -9/Materials | Discovered new exit (range 10) 3159 | -9/Materials | Build established: Mutant 3443 | -9/Materials | Entered Mines 3637 | -9/Mines | Discovered new exit (range 15) 3673 | -9/Mines | Joined a pair of Derelicts in attacking an 0b10 outpost 3872 | -9/Mines | Entered Materials 3872 | -8/Materials | Evolved 2 slots: Propulsion x1, Weapon x1 4243 | -8/Materials | Lost 3 parts (2p1n) 4306 | -8/Materials | Released all parts (9) 4346 | -8/Materials | Lost 5 parts (1p2n2w) 4525 | -8/Materials | Core integrity fell below 50% 4562 | -8/Materials | Lost 5 parts (1p2n2w) 4774 | -8/Materials | Core integrity fell below 20% 4787 | -8/Materials | Destroyed by B-36 Bruiser with Hammer Last Messages --------------- 04746_ G-47 Trooper misfires. 04748_ Lgt. Treads destroyed. 04748_ Critical hit (Burn: +37). 04751_ Imp. Light Cannon destroyed. 04752_ Hvy. EM Pulse Gun destroyed. 04756_ G-47 Trooper misfires. 04758_ Acquired 2 matter. 04765_ Lgt. Treads destroyed. 04765_ System corrupted by crushing effect (+2). 04768_ Mni. Grenade Launcher destroyed. 04769_ System corrupted: Heat flow error (+144). 04772_ Recalibrator destroyed. 04772_ System corrupted by crushing effect (+4). 04773_ EM Pulse Cannon destroyed. 04773_ R-06 Scavenger collects Corrupted Particle Gun. 04775_ Critical hit (Burn: +37). 04777_ Lgt. Deuterium Engine destroyed. 04784_ U-05 Engineer builds a Door. 04784_ K-01 Serf cleans the Material Compactor. Map ----- +----------------------------------------------------+ | ?????????????????????????????????????????????????? | | ????????????????????#????????????????????????????? | | ????????????????????+ ??????????????????????????? | | ???????????????# ???# ?????????????????????????? | | ???????????????# ?# ?????????????????????????? | | ???????????????# ?# ?????????????????????????? | | ???????????????# # #????????????????????????? | | ???????????????? # #????????????????????????? | | ????????????????? ###??????????????????????? | | ??????????????????# ##########?????????????? | | ???????????????????# #?????????????? | | ??????????????????## [%= = #?????????????? | | ?????????#+??????## !%! #?????????????? | | ????????? ####### % #?????????????? | | ?????????? # """ #??############ | | ????????? "" """ #??# # | | ????????? % [ """ #??# ]] # | | ???????????? ####### #??# ] #! | | ???????????????# # #+#############??# # | | ???????????????# # # # # #??????# # " | | ???????????????#?## # # #??????# """ # " | | ??????????????????## # % # #??????# """ # " | | ???????????????????# # g #??????# """ + | | ??????? ?????????### g u ##??????# # | | ????? ############b##################+##### | | ????? r @ | | ????? | | ???????"" k a% = | | ???????""" ########### # #############+#### ##### | | ????????"?????????????# # # ### #?# ## | | ??????????????????????##### #?????# """ #?# ## | | ????????????????????????# """ ?????# """ #?# ## | | ????????????????????????# """ ?????# """ ### ## | | ????????????????????????# """ "????# """ + ## | | ????????????????????????? ??? ????# """ ###### | | ????????????????????????? ???? ????# #????# | | ????????????????????????? ????? ???# #????#= | | ????????????????????????? ?????????# #????#### | | ????????????????????????? ?????????# #???????? | | ???????????????????????????????????# ! #???????? | | ???????????????????????????????????# #???????? | | ???????????????????????????????????#######???????? | | ?????????????????????????????????????????????????? | | ?????????????????????????????????????????????????? | | ?????????????????????????????????????????????????? | | ?????????????????????????????????????????????????? | | ?????????????????????????????????????????????????? | | ?????????????????????????????????????????????????? | | ?????????????????????????????????????????????????? | | ?????????????????????????????????????????????????? | +----------------------------------------------------+ Best States ------------- Heat Dissipation 31 Energy Generation 19 Energy Capacity 310 Matter Stores 300 Matter Capacity 300 Sight Range 18 Robot Scan Range 14 Terrain Scan Density 10 Evasion (%) 55 Recoil Reduction 4 Item Schematics ----------------- None Robot Schematics ------------------ None Fabricated ------------ Nothing Alien Tech Used ----------------- None Achievements -------------- None Challenges ------------ None Game ------ Seed AntigravAluminumStorage Manual? 0 Play Time 00:35:05 Cumulative 13.1 hours Start 2024.05.16 @ 18:44:07 End 2024.05.21 @ 18:26:14 Sessions 3 Manual Loads 0 Difficulty Rogue Special Mode None Game No. 19 Rogue 19 Adventurer 0 Explorer 0 Win Type - Total 0 Types 0/0/0/0/0/0/0/0/0 Lore% 13 Gallery% 22 Achievement% 17 Wizard Run 0 Options --------- Layout 2 ASCII 0 Keyboard 0 Movement Mouse Keybinds 0 Fullscreen 1 Font 48/Smallcaps Map View 50x44 Zoom Use 0% Tactical HUD 1 Map Filters NONE Filters NONE Steam 1 RUN: 1218fbb8-b0cc-48d2-96ed-b32e9edc1bf1